[Event "Gaprindashvili Cup Open II Stage 2020"]
[Site "Online"]
[Date "2020.11.08"]
[Round "9.17"]
[White "Liponava, Zurab"]
[Black "Chanturia, Lasha"]
[Result "0-1"]
[ECO "B49"]
[WhiteElo "1800"]
[BlackElo "1761"]
[Annotator "NA"]
[PlyCount "104"]
[EventDate "2020.11.04"]
[EventType "swiss"]
[SourceTitle "playchess.com"]
[Source "ChessBase"]
[SourceQuality "1"]
[TimeControl "1500+5"]

1. e4 {[%emt 0:00:00]} c5 {[%emt 0:00:06]} 2. Nf3 {[%emt 0:00:06]} e6 {[%emt 0:00:02]} 3. d4 {[%emt 0:00:03]} cxd4 {[%emt 0:00:01]} 4. Nxd4 {[%emt 0:00:02]} a6 {[%emt 0:00:02]} 5. Nc3 {[%emt 0:00:19]} Qc7 {[%emt 0:00:02]} 6. Be2 {[%emt 0:00:16]} Nf6 {[%emt 0:00:03]} 7. O-O {[%emt 0:00:09]} Nc6 {[%emt 0:00:04]} 8. Be3 {[%emt 0:00:09]} b5 {[%emt 0:00:09]} 9. Nxc6 {[%emt 0:01:29]} dxc6 {[%emt 0:00:03]} 10. a3 {[%emt 0:00:57]} Be7 {[%emt 0:00:07]} 11. f4 {[%emt 0:00:03]} Bb7 {[%emt 0:00:12]} 12. e5 {[%emt 0:00:16]} Nd5 {[%emt 0:00:05]} 13. Nxd5 {[%emt 0:00:04]} cxd5 {[%emt 0:00:04]} 14. Bd4 {[%emt 0:00:08]} Rc8 {[%emt 0:00:08]} 15. c3 {[%emt 0:00:04]} Bc5 {[%emt 0:00:18]} 16. Bd3 {[%emt 0:00:25]} Qb6 {[%emt 0:00:18]} 17. Kh1 {[%emt 0:00:09]} g6 {[%emt 0:00:12]} 18. Be2 {[%emt 0:02:42]} Rc7 {[%emt 0:01:16]} 19. Qd2 {[%emt 0:00:29]} O-O {[%emt 0:00:15]} 20. f5 {[%emt 0:00:28]} Bxd4 {[%emt 0:00:17]} 21. cxd4 {[%emt 0:00:04]} exf5 {[%emt 0:00:07]} 22. Rf4 {[%emt 0:00:31]} f6 {[%emt 0:00:14]} 23. exf6 {[%emt 0:00:41]} Qxf6 {[%emt 0:00:05]} 24. g4 {[%emt 0:00:11]} Qg5 {[%emt 0:00:50]} 25. Raf1 {[%emt 0:00:10]} Rcf7 {[%emt 0:00:08]} 26. Qc1 {[%emt 0:02:15]} Qe7 {[%emt 0:00:13]} 27. Bd1 {[%emt 0:03:05]} fxg4 {[%emt 0:01:13]} 28. Rxf7 {[%emt 0:00:20]} Rxf7 {[%emt 0:00:04]} 29. Rxf7 {[%emt 0:00:25]} Kxf7 {[%emt 0:00:15]} 30. Qf4+ {[%emt 0:00:24]} Kg7 {[%emt 0:00:04]} 31. Bxg4 {[%emt 0:00:39]} Qe4+ {[%emt 0:00:07]} 32. Qxe4 {[%emt 0:00:03]} dxe4 {[%emt 0:00:03]} 33. Kg1 {[%emt 0:00:10]} h5 {[%emt 0:01:04]} 34. Bd7 {[%emt 0:00:14]} g5 {[%emt 0:00:07]} 35. Be8 {[%emt 0:00:20]} Kh6 {[%emt 0:00:17]} 36. Kf2 {[%emt 0:00:09]} g4 {[%emt 0:00:10]} 37. Ke3 {[%emt 0:00:39]} Kg5 {[%emt 0:00:44]} 38. Bd7 {[%emt 0:00:46]} h4 {[%emt 0:00:31]} 39. Be6 {[%emt 0:00:27]} g3 {[%emt 0:00:21]} 40. hxg3 {[%emt 0:00:20]} hxg3 {[%emt 0:00:04]} 41. d5 {[%emt 0:00:25]} Kf6 {[%emt 0:00:11]} 42. Bh3 {[%emt 0:01:23]} Bxd5 {[%emt 0:00:04]} 43. Kf4 {[%emt 0:00:16]} a5 {[%emt 0:02:05]} 44. Bf1 {[%emt 0:01:27]} b4 {[%emt 0:00:30]} 45. Bh3 {[%emt 0:01:06]} e3 {[%emt 0:00:46]} 46. Kxg3 {[%emt 0:00:21]} Ke5 {[%emt 0:00:12]} 47. Bf1 {[%emt 0:00:17]} Kd4 {[%emt 0:00:16]} 48. Kf4 {[%emt 0:00:18]} Bc4 {[%emt 0:00:14]} 49. Bxc4 {[%emt 0:00:22]} Kxc4 {[%emt 0:00:04]} 50. Kxe3 {[%emt 0:00:03]} Kb3 {[%emt 0:00:02]} 51. Kd2 {[%emt 0:01:57]} Kxb2 {[%emt 0:00:05]} 52. axb4 {[%emt 0:00:09]} axb4 {[%emt 0:00:03]} 0-1